[Event "FRA-ch Teams Top 16-B 2022"]
[Site "Chartres"]
[Date "2022.06.14"]
[Round "6.18"]
[White "Brailly-Vignal, Bastien"]
[Black "Kirk, Ezra"]
[Result "0-1"]
[ECO "A70"]
[WhiteElo "2372"]
[BlackElo "2446"]
[Annotator "RC"]
[PlyCount "122"]
[EventDate "2022.06.09"]
[EventType "team-tourn"]
[EventCountry "FRA"]
[SourceTitle "playchess.com"]
[Source "ChessBase"]
[SourceQuality "1"]
[TimeControl "40/5400+30:1800+30"]

1. d4 {[%emt 0:00:16]} Nf6 {[%emt 0:00:17]} 2. c4 {[%emt 0:00:03]} e6 {[%emt 0:00:05]} 3. Nc3 {[%emt 0:00:17]} c5 {[%emt 0:00:16]} 4. d5 {[%emt 0:00:33]} exd5 {[%emt 0:00:06]} 5. cxd5 {[%emt 0:00:08]} d6 {[%emt 0:00:05]} 6. e4 {[%emt 0:00:15]} g6 {[%emt 0:00:20]} 7. h3 {[%emt 0:00:22]} Bg7 {[%emt 0:00:16]} 8. Nf3 {[%emt 0:00:07]} O-O {[%emt 0:00:23]} 9. Bd3 {[%emt 0:00:16]} a6 {[%emt 0:00:36]} 10. a4 {[%emt 0:00:22]} Nbd7 {[%emt 0:01:59]} 11. O-O {[%emt 0:01:50]} Re8 {[%emt 0:01:32]} 12. Re1 {[%emt 0:04:40]} Nh5 {[%emt 0:00:30]} 13. Bg5 {[%emt 0:02:01]} Bf6 {[%emt 0:00:37]} 14. Be3 {[%emt 0:04:36]} Ne5 {[%emt 0:02:21]} 15. Be2 {[%emt 0:01:50]} Nxf3+ {[%emt 0:00:46]} 16. Bxf3 {[%emt 0:00:04]} Ng7 {[%emt 0:00:07]} 17. Bg4 {[%emt 0:08:02]} Bg5 {[%emt 0:19:06]} 18. Bxc8 {[%emt 0:07:31]} Rxc8 {[%emt 0:00:19]} 19. Qb3 {[%emt 0:02:41]} Rb8 {[%emt 0:12:41]} 20. Qc4 {[%emt 0:08:25]} Bxe3 {[%emt 0:09:35]} 21. Rxe3 {[%emt 0:00:51]} Qa5 {[%emt 0:00:06]} 22. Ree1 {[%emt 0:11:04]} Re7 {[%emt 0:08:14]} 23. e5 {[%emt 0:08:05]} Rxe5 {[%emt 0:03:01]} 24. Rxe5 {[%emt 0:01:35]} dxe5 {[%emt 0:00:06]} 25. Ne4 {[%emt 0:00:23]} Nf5 {[%emt 0:04:48]} 26. Qxc5 {[%emt 0:05:03]} Qxc5 {[%emt 0:01:34]} 27. Nxc5 {[%emt 0:00:14]} Rd8 {[%emt 0:02:59]} 28. Nxb7 {[%emt 0:03:12]} Rxd5 {[%emt 0:00:06]} 29. b4 {[%emt 0:06:47]} Nd4 {[%emt 0:00:38]} 30. Nc5 {[%emt 0:09:19]} Nc2 {[%emt 0:09:16]} 31. Rb1 {[%emt 0:03:58]} Nxb4 {[%emt 0:01:47]} 32. Rxb4 {[%emt 0:01:35]} Rxc5 {[%emt 0:00:04]} 33. Kf1 {[%emt 0:00:21]} Rc1+ {[%emt 0:04:21]} 34. Ke2 {[%emt 0:00:05]} Ra1 {[%emt 0:00:39]} 35. f4 {[%emt 0:02:03]} exf4 {[%emt 0:02:55]} 36. Rxf4 {[%emt 0:00:11]} Ra3 {[%emt 0:00:39]} 37. Kf2 {[%emt 0:03:12]} Kg7 {[%emt 0:00:22]} 38. Kg1 {[%emt 0:02:13]} f6 {[%emt 0:06:49]} 39. Kh2 {[%emt 0:02:55]} g5 {[%emt 0:03:01]} 40. Rc4 {[%emt 0:00:55]} Kg6 {[%emt 0:00:25]} 41. h4 {[%emt 0:06:39]} h6 {[%emt 0:07:40]} 42. Kg1 {[%emt 0:03:37]} a5 {[%emt 0:03:04]} 43. Kf2 {[%emt 0:03:45]} Ra2+ {[%emt 0:01:52]} 44. Kf3 {[%emt 0:03:15]} Ra3+ {[%emt 0:00:44]} 45. Kf2 {[%emt 0:00:44]} Kf7 {[%emt 0:00:33]} 46. Ke2 {[%emt 0:04:20]} Ke6 {[%emt 0:02:15]} 47. Rc6+ {[%emt 0:10:28]} Ke7 {[%emt 0:00:26]} 48. h5 {[%emt 0:00:50]} Rxa4 {[%emt 0:00:38]} 49. Rc7+ {[%emt 0:01:29]} Ke6 {[%emt 0:00:44]} 50. Rh7 {[%emt 0:00:01]} Re4+ {[%emt 0:00:13]} 51. Kf3 {[%emt 0:00:24]} Rf4+ {[%emt 0:00:05]} 52. Kg3 {[%emt 0:00:32]} a4 {[%emt 0:01:06]} 53. Rxh6 {[%emt 0:00:23]} a3 {[%emt 0:03:30]} 54. Rh8 {[%emt 0:00:32]} Ra4 {[%emt 0:01:29]} 55. Re8+ {[%emt 0:00:03]} Kf7 {[%emt 0:00:41]} 56. Re1 {[%emt 0:00:06]} a2 {[%emt 0:00:07]} 57. Ra1 {[%emt 0:00:02]} Kg7 {[%emt 0:01:02]} 58. Kh3 {[%emt 0:00:54]} f5 {[%emt 0:00:11]} 59. g4 {[%emt 0:00:34]} fxg4+ {[%emt 0:00:11]} 60. Kg2 {[%emt 0:01:34]} Kh6 {[%emt 0:00:07]} 61. Kg3 {[%emt 0:00:05]} Kh7 {[%emt 0:01:59]} 0-1

[Event "FRA-ch Teams Top 16-B 2022"]
[Site "Chartres"]
[Date "2022.06.14"]
[Round "6.19"]
[White "Le Hetet, Nicolas"]
[Black "Buscara, Sevan"]
[Result "1/2-1/2"]
[ECO "C45"]
[WhiteElo "2372"]
[BlackElo "2385"]
[Annotator "RC"]
[PlyCount "27"]
[EventDate "2022.06.09"]
[EventType "team-tourn"]
[EventCountry "FRA"]
[SourceTitle "playchess.com"]
[Source "ChessBase"]
[SourceQuality "1"]
[TimeControl "40/5400+30:1800+30"]

1. e4 {[%emt 0:03:13]} e5 {[%emt 0:00:09]} 2. Nf3 {[%emt 0:00:15]} Nc6 {[%emt 0:00:17]} 3. d4 {[%emt 0:01:12]} exd4 {[%emt 0:00:34]} 4. Nxd4 {[%emt 0:00:20]} Bc5 {[%emt 0:00:55]} 5. Be3 {[%emt 0:00:20]} Qf6 {[%emt 0:00:35]} 6. c3 {[%emt 0:00:16]} Nge7 {[%emt 0:00:42]} 7. Bb5 {[%emt 0:01:52]} b6 {[%emt 0:05:28]} 8. O-O {[%emt 0:13:01]} Bb7 {[%emt 0:01:39]} 9. a4 {[%emt 0:10:54]} a6 {[%emt 0:05:58]} 10. Be2 {[%emt 0:06:59]} d5 {[%emt 0:04:40]} 11. Nxc6 {[%emt 0:08:52]} Qxc6 {[%emt 0:04:13]} 12. exd5 {[%emt 0:02:54]} Nxd5 {[%emt 0:01:24]} 13. Bxc5 {[%emt 0:01:08]} Qxc5 {[%emt 0:02:43]} 14. Bf3 {[%emt 0:04:57]} 1/2-1/2

[Event "FRA-ch Teams Top 16-B 2022"]
[Site "Chartres"]
[Date "2022.06.14"]
[Round "6.20"]
[White "Benitah, Yohan"]
[Black "Favarel, Julien"]
[Result "1-0"]
[ECO "A31"]
[WhiteElo "2383"]
[BlackElo "2312"]
[Annotator "RC"]
[PlyCount "67"]
[EventDate "2022.06.09"]
[EventType "team-tourn"]
[EventCountry "FRA"]
[SourceTitle "playchess.com"]
[Source "ChessBase"]
[SourceQuality "1"]
[TimeControl "40/5400+30:1800+30"]

1. d4 {[%emt 0:00:02]} Nf6 {[%emt 0:03:17]} 2. c4 {[%emt 0:00:08]} c5 {[%emt 0:00:30]} 3. Nf3 {[%emt 0:05:09]} cxd4 {[%emt 0:01:43]} 4. Nxd4 {[%emt 0:00:13]} e5 {[%emt 0:00:10]} 5. Nb5 {[%emt 0:00:12]} d5 {[%emt 0:00:15]} 6. cxd5 {[%emt 0:00:10]} Bc5 {[%emt 0:00:39]} 7. e3 {[%emt 0:00:41]} O-O {[%emt 0:00:39]} 8. N5c3 {[%emt 0:01:36]} Bf5 {[%emt 0:02:24]} 9. h3 {[%emt 0:11:42]} h5 {[%emt 0:10:07]} 10. Qf3 {[%emt 0:15:31]} Bxb1 {[%emt 0:27:16]} 11. Rxb1 {[%emt 0:00:15]} e4 {[%emt 0:01:57]} 12. Nxe4 {[%emt 0:05:21]} Nxe4 {[%emt 0:00:03]} 13. Qxe4 {[%emt 0:00:08]} Re8 {[%emt 0:00:33]} 14. Qa4 {[%emt 0:04:25]} Nd7 {[%emt 0:05:37]} 15. Be2 {[%emt 0:05:38]} Nb6 {[%emt 0:07:00]} 16. Qb3 {[%emt 0:01:30]} Qh4 {[%emt 0:03:59]} 17. O-O {[%emt 0:02:41]} Re5 {[%emt 0:00:59]} 18. Bf3 {[%emt 0:06:53]} g5 {[%emt 0:02:27]} 19. Qd1 {[%emt 0:01:59]} g4 {[%emt 0:08:43]} 20. g3 {[%emt 0:01:10]} Qf6 {[%emt 0:03:13]} 21. hxg4 {[%emt 0:00:19]} Qg6 {[%emt 0:04:30]} 22. b4 {[%emt 0:01:18]} Qxb1 {[%emt 0:04:56]} 23. bxc5 {[%emt 0:00:14]} Nc4 {[%emt 0:00:38]} 24. Qd4 {[%emt 0:00:35]} Qxa2 {[%emt 0:00:37]} 25. gxh5 {[%emt 0:01:49]} Qc2 {[%emt 0:00:57]} 26. d6 {[%emt 0:00:32]} Rg5 {[%emt 0:01:47]} 27. d7 {[%emt 0:01:44]} Ne5 {[%emt 0:03:28]} 28. Be4 {[%emt 0:00:39]} Rd8 {[%emt 0:01:40]} 29. Bxc2 {[%emt 0:02:17]} Nf3+ {[%emt 0:00:08]} 30. Kg2 {[%emt 0:00:02]} Nxd4 {[%emt 0:01:16]} 31. exd4 {[%emt 0:00:02]} Rd5 {[%emt 0:00:41]} 32. h6 {[%emt 0:00:27]} R8xd7 {[%emt 0:00:22]} 33. Re1 {[%emt 0:01:09]} Rd8 {[%emt 0:00:33]} 34. Be4 {[%emt 0:01:13]} 1-0

[Event "FRA-ch Teams Top 16-B 2022"]
[Site "Chartres"]
[Date "2022.06.14"]
[Round "6.21"]
[White "Ternault, Mathieu"]
[Black "Crut, Aurelien"]
[Result "1/2-1/2"]
[ECO "C10"]
[WhiteElo "2367"]
[BlackElo "2355"]
[Annotator "RC"]
[PlyCount "58"]
[EventDate "2022.06.09"]
[EventType "team-tourn"]
[EventCountry "FRA"]
[SourceTitle "playchess.com"]
[Source "ChessBase"]
[SourceQuality "1"]
[TimeControl "40/5400+30:1800+30"]

1. e4 {[%emt 0:00:03]} e6 {[%emt 0:00:26]} 2. d4 {[%emt 0:00:17]} d5 {[%emt 0:00:06]} 3. Nc3 {[%emt 0:00:47]} Be7 {[%emt 0:00:40]} 4. e5 {[%emt 0:00:14]} c5 {[%emt 0:00:34]} 5. Qg4 {[%emt 0:00:10]} Kf8 {[%emt 0:01:03]} 6. dxc5 {[%emt 0:00:57]} Nc6 {[%emt 0:01:13]} 7. Nf3 {[%emt 0:01:59]} Bxc5 {[%emt 0:01:28]} 8. Bd3 {[%emt 0:04:12]} f6 {[%emt 0:08:09]} 9. exf6 {[%emt 0:30:45]} Nxf6 {[%emt 0:01:32]} 10. Qh4 {[%emt 0:03:01]} e5 {[%emt 0:09:32]} 11. Bb5 {[%emt 0:18:21]} e4 {[%emt 0:11:38]} 12. Bg5 {[%emt 0:05:43]} exf3 {[%emt 0:06:05]} 13. O-O-O {[%emt 0:01:11]} fxg2 {[%emt 0:12:08]} 14. Rhg1 {[%emt 0:09:20]} Be6 {[%emt 0:03:54]} 15. Rxg2 {[%emt 0:01:39]} Be7 {[%emt 0:15:00]} 16. Re1 {[%emt 0:01:20]} Bf7 {[%emt 0:05:09]} 17. f3 {[%emt 0:06:00]} d4 {[%emt 0:04:11]} 18. Ne2 {[%emt 0:03:52]} Qd5 {[%emt 0:04:04]} 19. Bxc6 {[%emt 0:00:21]} bxc6 {[%emt 0:00:32]} 20. Nf4 {[%emt 0:00:41]} Qd7 {[%emt 0:03:22]} 21. Rge2 {[%emt 0:03:55]} Re8 {[%emt 0:00:11]} 22. Ne6+ {[%emt 0:01:35]} Bxe6 {[%emt 0:01:48]} 23. Rxe6 {[%emt 0:00:02]} Kf7 {[%emt 0:03:31]} 24. Bxf6 {[%emt 0:00:30]} Bxf6 {[%emt 0:00:45]} 25. Rxf6+ {[%emt 0:01:09]} gxf6 {[%emt 0:00:05]} 26. Qh5+ {[%emt 0:00:05]} Kf8 {[%emt 0:00:29]} 27. Qh6+ {[%emt 0:00:13]} Kf7 {[%emt 0:00:12]} 28. Qh5+ {[%emt 0:00:04]} Kf8 {[%emt 0:00:23]} 29. Qh6+ {[%emt 0:00:40]} Kf7 {[%emt 0:00:04]} 1/2-1/2

[Event "FRA-ch Teams Top 16-B 2022"]
[Site "Chartres"]
[Date "2022.06.14"]
[Round "6.22"]
[White "Marzolo, Cyril"]
[Black "Domenech, Vianney"]
[Result "1/2-1/2"]
[ECO "E61"]
[WhiteElo "2376"]
[BlackElo "2266"]
[Annotator "RC"]
[PlyCount "122"]
[EventDate "2022.06.09"]
[EventType "team-tourn"]
[EventCountry "FRA"]
[SourceTitle "playchess.com"]
[Source "ChessBase"]
[SourceQuality "1"]
[TimeControl "40/5400+30:1800+30"]

1. c4 {[%emt 0:06:35]} Nf6 {[%emt 0:00:16]} 2. Nc3 {[%emt 0:00:08]} g6 {[%emt 0:00:11]} 3. Nf3 {[%emt 0:02:33]} Bg7 {[%emt 0:00:18]} 4. d4 {[%emt 0:01:15]} O-O {[%emt 0:00:44]} 5. Bg5 {[%emt 0:00:04]} d6 {[%emt 0:01:01]} 6. e3 {[%emt 0:00:47]} c6 {[%emt 0:03:43]} 7. Be2 {[%emt 0:01:25]} Nbd7 {[%emt 0:02:00]} 8. O-O {[%emt 0:00:14]} Qc7 {[%emt 0:05:43]} 9. h3 {[%emt 0:01:19]} e5 {[%emt 0:06:52]} 10. b4 {[%emt 1:21:10]} h6 {[%emt 0:06:17]} 11. Bh4 {[%emt 0:00:30]} Nh7 {[%emt 1:08:55]} 12. Qb3 {[%emt 0:00:00]} Kh8 {[%emt 0:00:30]} 13. c5 {[%emt 0:00:00]} g5 {[%emt 0:00:00]} 14. cxd6 {[%emt 0:00:00]} Qxd6 {[%emt 0:01:00]} 15. Bg3 {[%emt 0:00:00]} f5 {[%emt 0:00:00]} 16. dxe5 {[%emt 0:00:00]} Nxe5 {[%emt 0:00:00]} 17. Nxe5 {[%emt 0:00:00]} Bxe5 {[%emt 0:00:00]} 18. Rfd1 {[%emt 0:00:00]} Qf6 {[%emt 0:00:00]} 19. Bxe5 {[%emt 0:04:00]} Qxe5 {[%emt 0:02:30]} 20. Na4 {[%emt 0:00:30]} Nf6 {[%emt 0:00:30]} 21. Rac1 {[%emt 0:00:30]} Be6 {[%emt 0:00:30]} 22. Qc3 {[%emt 0:00:30]} Qxc3 {[%emt 0:00:30]} 23. Nxc3 {[%emt 0:00:30]} Rad8 {[%emt 0:00:30]} 24. b5 {[%emt 0:00:30]} c5 {[%emt 0:00:30]} 25. b6 {[%emt 0:00:30]} axb6 {[%emt 0:00:30]} 26. Rb1 {[%emt 0:00:30]} Nd5 {[%emt 0:00:30]} 27. Na4 {[%emt 0:00:30]} Ra8 {[%emt 0:00:30]} 28. Nxb6 {[%emt 0:00:30]} Nc3 {[%emt 0:00:30]} 29. Nxa8 {[%emt 0:00:30]} Nxe2+ {[%emt 0:00:30]} 30. Kf1 {[%emt 0:00:30]} Nc3 {[%emt 0:00:30]} 31. Nb6 {[%emt 0:00:30]} Nxb1 {[%emt 0:00:30]} 32. Rxb1 {[%emt 0:00:30]} Bxa2 {[%emt 0:00:30]} 33. Rb5 {[%emt 0:00:30]} Rf6 {[%emt 0:00:30]} 34. Ke1 {[%emt 0:00:30]} Rc6 {[%emt 0:00:00]} 35. Kd2 {[%emt 0:00:00]} Kg7 36. Kc3 {[%emt 0:01:00]} Be6 {[%emt 0:01:30]} 37. Na4 {[%emt 0:00:30]} Kf6 {[%emt 0:00:30]} 38. Rxb7 {[%emt 0:00:30]} Bd5 {[%emt 0:00:30]} 39. g3 {[%emt 0:00:00]} Bg2 {[%emt 0:00:00]} 40. h4 {[%emt 0:00:16]} gxh4 {[%emt 0:00:00]} 41. gxh4 {[%emt 0:30:04]} Ra6 {[%emt 0:04:23]} 42. Rb6+ {[%emt 0:00:00]} Rxb6 {[%emt 0:00:21]} 43. Nxb6 {[%emt 0:00:00]} Kg6 {[%emt 0:00:14]} 44. Nd7 {[%emt 0:00:00]} Kh5 {[%emt 0:01:43]} 45. Nxc5 {[%emt 0:00:00]} Kxh4 {[%emt 0:00:30]} 46. Kd2 {[%emt 0:00:00]} Bc6 {[%emt 0:07:08]} 47. Ne6 {[%emt 0:00:00]} Bd7 {[%emt 0:06:19]} 48. Nd4 {[%emt 0:01:34]} Kh3 {[%emt 0:00:21]} 49. Ke1 {[%emt 0:00:36]} Kg2 {[%emt 0:02:54]} 50. Ne2 {[%emt 0:00:25]} Bb5 {[%emt 0:00:11]} 51. Nf4+ {[%emt 0:00:22]} Kf3 {[%emt 0:01:20]} 52. Ne6 {[%emt 0:01:14]} Bd3 {[%emt 0:00:39]} 53. Nd4+ {[%emt 0:00:41]} Kg2 {[%emt 0:03:06]} 54. Kd2 {[%emt 0:00:49]} Be4 {[%emt 0:03:16]} 55. f3 {[%emt 0:00:33]} Bxf3 {[%emt 0:01:31]} 56. Nxf5 {[%emt 0:00:10]} h5 {[%emt 0:00:25]} 57. Nh4+ {[%emt 0:02:05]} Kf2 {[%emt 0:00:05]} 58. Kd3 {[%emt 0:00:33]} Kg3 {[%emt 0:02:33]} 59. Nxf3 {[%emt 0:00:31]} Kxf3 {[%emt 0:00:04]} 60. e4 {[%emt 0:00:01]} Kf4 {[%emt 0:00:13]} 61. e5 {[%emt 0:00:17]} Kxe5 {[%emt 0:00:05]} 1/2-1/2

[Event "FRA-ch Teams Top 16-B 2022"]
[Site "Chartres"]
[Date "2022.06.14"]
[Round "6.23"]
[White "Roubert, Emile"]
[Black "Rouler, Charly"]
[Result "0-1"]
[ECO "B84"]
[WhiteElo "2027"]
[BlackElo "2345"]
[Annotator "RC"]
[PlyCount "120"]
[EventDate "2022.06.09"]
[EventType "team-tourn"]
[EventCountry "FRA"]
[SourceTitle "playchess.com"]
[Source "ChessBase"]
[SourceQuality "1"]
[TimeControl "40/5400+30:1800+30"]

1. e4 {[%emt 0:02:44]} c5 {[%emt 0:00:02]} 2. Nf3 {[%emt 0:00:21]} e6 {[%emt 0:00:02]} 3. d4 {[%emt 0:00:09]} cxd4 {[%emt 0:00:06]} 4. Nxd4 {[%emt 0:00:12]} a6 {[%emt 0:00:04]} 5. Nc3 {[%emt 0:00:29]} Qc7 {[%emt 0:00:28]} 6. Be2 {[%emt 0:00:14]} Nf6 {[%emt 0:01:12]} 7. O-O {[%emt 0:00:50]} d6 {[%emt 0:00:40]} 8. f4 {[%emt 0:02:21]} Nc6 {[%emt 0:02:01]} 9. Kh1 {[%emt 0:01:47]} Be7 {[%emt 0:05:28]} 10. Nxc6 {[%emt 0:00:44]} bxc6 {[%emt 0:02:19]} 11. Qd3 {[%emt 0:00:36]} O-O {[%emt 0:02:05]} 12. b3 {[%emt 0:01:25]} Bb7 {[%emt 0:18:24]} 13. Bb2 {[%emt 0:01:16]} c5 {[%emt 0:03:28]} 14. Rae1 {[%emt 0:01:10]} Nd7 {[%emt 0:09:39]} 15. Qh3 {[%emt 0:08:32]} Bf6 {[%emt 0:07:33]} 16. Bd3 {[%emt 0:17:45]} g6 {[%emt 0:05:04]} 17. Rf3 {[%emt 0:19:01]} Qa5 {[%emt 0:09:04]} 18. Bf1 {[%emt 0:06:43]} Rae8 {[%emt 0:07:16]} 19. Rd3 {[%emt 0:02:07]} Bd4 {[%emt 0:01:17]} 20. Qh4 {[%emt 0:06:52]} f6 {[%emt 0:04:37]} 21. Rh3 {[%emt 0:02:49]} Rf7 {[%emt 0:00:17]} 22. Bc4 {[%emt 0:02:46]} Nf8 {[%emt 0:06:33]} 23. f5 {[%emt 0:02:40]} gxf5 {[%emt 0:03:57]} 24. exf5 {[%emt 0:01:12]} Rg7 {[%emt 0:01:22]} 25. Rg3 {[%emt 0:00:39]} Ree7 {[%emt 0:01:52]} 26. fxe6 {[%emt 0:06:10]} Ng6 {[%emt 0:01:21]} 27. Qh5 {[%emt 0:01:56]} Bf2 {[%emt 0:01:01]} 28. Rf1 {[%emt 0:01:04]} Bxg3 {[%emt 0:01:17]} 29. hxg3 {[%emt 0:00:14]} Ne5 {[%emt 0:01:13]} 30. Nd5 {[%emt 0:01:03]} Bxd5 {[%emt 0:00:27]} 31. Bxd5 {[%emt 0:00:06]} Qd2 {[%emt 0:00:42]} 32. Rd1 {[%emt 0:02:35]} Qg5 {[%emt 0:02:15]} 33. Qxg5 {[%emt 0:02:16]} Rxg5 {[%emt 0:00:21]} 34. Bxe5 {[%emt 0:01:40]} dxe5 {[%emt 0:00:40]} 35. Bc4 {[%emt 0:00:23]} Rxg3 {[%emt 0:02:10]} 36. Bxa6 {[%emt 0:01:43]} Kf8 {[%emt 0:01:28]} 37. Bc4 {[%emt 0:00:59]} Ra7 {[%emt 0:00:20]} 38. Rd8+ {[%emt 0:01:15]} Ke7 {[%emt 0:00:02]} 39. Rh8 {[%emt 0:00:25]} Rg7 {[%emt 0:00:38]} 40. a4 {[%emt 0:00:19]} Rc7 {[%emt 0:01:11]} 41. a5 {[%emt 0:03:47]} f5 {[%emt 0:01:34]} 42. a6 {[%emt 0:03:28]} e4 {[%emt 0:01:52]} 43. Kg1 {[%emt 0:04:35]} Kf6 {[%emt 0:04:12]} 44. Rd8 {[%emt 0:10:46]} Ke5 {[%emt 0:03:27]} 45. Rd5+ {[%emt 0:00:49]} Kf4 {[%emt 0:01:37]} 46. Kf2 {[%emt 0:02:02]} h5 {[%emt 0:01:42]} 47. g3+ {[%emt 0:04:04]} Rxg3 {[%emt 0:05:28]} 48. Rxf5+ {[%emt 0:00:18]} Kxf5 {[%emt 0:00:01]} 49. Kxg3 {[%emt 0:00:08]} Ke5 {[%emt 0:00:33]} 50. c3 {[%emt 0:01:43]} Rh7 {[%emt 0:02:26]} 51. Kh4 {[%emt 0:00:26]} e3 {[%emt 0:01:07]} 52. b4 {[%emt 0:01:27]} cxb4 {[%emt 0:00:42]} 53. cxb4 {[%emt 0:00:05]} Kd4 {[%emt 0:00:33]} 54. Be2 {[%emt 0:02:13]} Kd5 {[%emt 0:02:02]} 55. Bd3 {[%emt 0:02:34]} Kxe6 {[%emt 0:01:08]} 56. b5 {[%emt 0:00:30]} Kd6 {[%emt 0:00:30]} 57. b6 {[%emt 0:00:32]} Kc6 {[%emt 0:00:49]} 58. a7 {[%emt 0:01:30]} Rh8 {[%emt 0:00:47]} 59. a8=Q+ {[%emt 0:01:31]} Rxa8 {[%emt 0:00:02]} 60. Kxh5 {[%emt 0:00:00]} Ra2 {[%emt 0:00:34]} 0-1

[Event "FRA-ch Teams Top 16-B 2022"]
[Site "Chartres"]
[Date "2022.06.14"]
[Round "6.24"]
[White "Djidjeli, Sarah"]
[Black "Gennesseaux, Gabrielle"]
[Result "1-0"]
[ECO "C02"]
[WhiteElo "2040"]
[BlackElo "1794"]
[Annotator "NA RC"]
[PlyCount "27"]
[EventDate "2022.06.09"]
[EventType "team-tourn"]
[EventCountry "FRA"]
[SourceTitle "playchess.com"]
[Source "ChessBase"]
[SourceQuality "1"]
[TimeControl "40/5400+30:1800+30"]

1. e4 {[%emt 0:00:02]} e6 {[%emt 0:02:57]} 2. d4 {[%emt 0:00:03]} d5 {[%emt 0:00:05]} 3. e5 {[%emt 0:00:03]} c5 {[%emt 0:00:13]} 4. c3 {[%emt 0:00:02]} Nc6 {[%emt 0:00:12]} 5. Nf3 {[%emt 0:00:04]} Nge7 {[%emt 0:00:13]} 6. Na3 {[%emt 0:00:08]} Qa5 {[%emt 0:08:49]} 7. dxc5 {[%emt 0:06:05]} Qxc5 {[%emt 0:05:59]} 8. Nb5 {[%emt 0:02:55]} Ng6 {[%emt 0:18:12]} 9. Nc7+ {[%emt 0:08:20]} Kd7 {[%emt 0:01:23]} 10. Nxa8 {[%emt 0:02:46]} Ngxe5 {[%emt 0:03:37]} 11. Nxe5+ {[%emt 0:04:04]} Nxe5 {[%emt 0:00:08]} 12. Be3 {[%emt 0:00:05]} Qa5 {[%emt 0:01:03]} 13. b4 {[%emt 0:01:47]} Qd8 {[%emt 0:05:24]} 14. Bxa7 {[%emt 0:01:00]} 1-0

[Event "FRA-ch Teams Top 16-B 2022"]
[Site "Chartres"]
[Date "2022.06.14"]
[Round "6.25"]
[White "Kulaots, Kaido"]
[Black "Erigaisi Arjun"]
[Result "0-1"]
[ECO "C02"]
[WhiteElo "2537"]
[BlackElo "2675"]
[Annotator "TA"]
[PlyCount "98"]
[EventDate "2022.06.09"]
[EventType "team-tourn"]
[EventCountry "FRA"]
[SourceTitle "playchess.com"]
[Source "ChessBase"]
[SourceQuality "1"]
[TimeControl "40/5400+30:1800+30"]

{[%evp 14,98,0,0,0,0,0,-32,-21,-41,-10,-25,-35,-85,0,-30,0,-31,-27,-38,-29,-33,0,0,16,-16,-19,-143,-137,-154,-142,-138,-135,-128,-127,-136,-128,-140,-133,-137,-131,-134,-116,-130,-88,-159,-145,-160,-157,-175,-169,-158,-91,-221,-219,-213,-125,-112,-103,-379,-358,-695,-564,-564,-572,-576,-527,-585,-583,-777,-777,-750,-753,-783,-783,-780,-742,-985,-951,-999,-977,-1104,-1048,-2860,-2088,-29984,-29985]} 1. e4 {[%emt 0:00:06]} e6 {[%emt 0:00:09]} 2. d4 {[%emt 0:00:14]} d5 {[%emt 0:00:06]} 3. e5 {[%emt 0:00:26]} c5 {[%emt 0:00:07]} 4. c3 {[%emt 0:00:06]} Qb6 {[%emt 0:00:10]} 5. Nf3 {[%emt 0:00:10]} Nc6 {[%emt 0:01:06]} 6. Be2 {[%emt 0:01:05]} cxd4 {[%emt 0:00:27]} 7. cxd4 {[%emt 0:00:22]} Nh6 {[%emt 0:00:09]} 8. Bxh6 {[%emt 0:01:53] is more profitable than 8.Nc3 at the moment.} Qxb2 {[%emt 0:00:09] C02: French: Advance Variation.} 9. Nbd2 {[%emt 0:00:09]} gxh6 {[%emt 0:00:07]} 10. O-O {[%emt 0:04:14]} Nxd4 {[%emt 0:04:55] Black is slightly better.} 11. Rb1 {[%emt 0:05:58]} (11. Qa4+ Nc6 12. Rab1 Qa3 $17) 11... Nxe2+ {[%emt 0:00:21]} 12. Qxe2 {[%emt 0:00:08]} Qa3 {[%emt 0:00:06]} 13. Rfc1 {[%emt 0:12:42] [#]} (13. Nd4 $15 a6 14. N2f3) 13... Be7 $146 {[%emt 0:14:15]} (13... Qxa2 $2 14. Qb5+ Bd7 15. Qxb7 $18) (13... Qa6 $17 14. Qxa6 bxa6) ({Predecessor:} 13... Bd7 14. Rc7 Rc8 15. Rcxb7 Be7 16. g3 Bc6 17. R7b3 Qc5 18. Qd3 O-O 19. Nd4 Ba4 {0-1 (38) Salemgareev,T (2463)-Levin,E (2485) Cheliabinsk 2021}) 14. Rc7 {[%emt 0:09:59]} (14. Nd4 $5 {[%cal Rd4b5]} Bd7 15. Nb5 Bxb5 16. Qxb5+ Kf8 17. Qxb7 $15) 14... a6 {[%emt 0:10:34]} 15. Rbc1 {[%emt 0:26:22]} Bd7 {[%emt 0:02:12]} 16. Nb3 {[%emt 0:03:28]} Bd8 {[%emt 0:08:11]} 17. R7c3 {[%emt 0:04:38]} (17. Rxb7 Bc8 18. Rbc7 Bxc7 19. Rxc7 Qb4 $17) 17... Bb5 {[%emt 0:12:11]} (17... Qe7 $15 {deserves consideration.}) 18. Qe3 $1 $11 {[%emt 0:02:14] Black must now prevent Nc5.} Qe7 {[%emt 0:00:33]} (18... Qxa2 19. Qxh6 Qb2 20. Nc5 $16) 19. Qxh6 {[%emt 0:05:32]} Bc4 $36 {[%emt 0:00:38][%mdl 2048] Black is pushing.} 20. Rxc4 {[%emt 0:01:47]} (20. a4 $11 {remains equal.}) 20... dxc4 $17 {[%emt 0:00:11]} 21. Rxc4 {[%emt 0:00:30] [#]} Bc7 $1 {[%emt 0:03:29]} 22. Qd2 {[%emt 0:09:32]} Rd8 {[%emt 0:00:44]} 23. Qc2 {[%emt 0:00:10] [#]} Qd7 {[%emt 0:12:26]} 24. Nbd4 {[%emt 0:05:10]} Bb6 {[%emt 0:00:40][%cal Rb6d4]} 25. h3 {[%emt 0:00:45]} Qd5 {[%emt 0:05:29]} ({Inferior is} 25... Bxd4 26. Rxd4 Rc8 27. Qe4 $17) 26. Qa4+ {[%emt 0:01:16] [#]} Rd7 $1 {[%emt 0:00:34] ...Kd8 is the strong threat.} 27. Rc8+ {[%emt 0:00:56]} Bd8 {[%emt 0:00:06]} 28. Qc2 {[%emt 0:00:59] Hoping for Rc5.} b6 {[%emt 0:02:47] Against Rc5} 29. Qd2 {[%emt 0:02:28]} (29. Kh2 $142) 29... Qb7 {[%emt 0:05:45]} 30. Rc3 {[%emt 0:00:37]} Qe4 {[%emt 0:00:48] Prevents Qf4.} 31. Re3 {[%emt 0:01:15]} Qd5 {[%emt 0:00:57]} 32. Rc3 {[%emt 0:00:35]} Rg8 {[%emt 0:01:02]} ({Black should play} 32... b5 {aiming for ...Bb6.} 33. Rc8 Rc7) 33. Qf4 {[%emt 0:00:40]} (33. Qe2 $17 {was necessary.}) 33... Qxa2 $19 {[%emt 0:00:37]} 34. Rc8 {[%emt 0:00:20]} Qb1+ {[%emt 0:04:18]} (34... Rc7 $19 35. Ra8 Rg6) 35. Kh2 $17 {[%emt 0:00:23]} Rc7 {[%emt 0:01:33]} ({Don't play} 35... Qf1 $6 36. Ng5 Rxg5 37. Qxg5 Rxd4 38. Qg8+ Ke7 39. Qg5+ Ke8 40. Qg8+ Ke7 41. Qg5+ Ke8 $11) 36. Rxc7 {[%emt 0:00:47][%mdl 8192]} (36. Rb8 $17 Qc1 37. Qh4) 36... Bxc7 $19 {[%emt 0:00:07]} 37. Nc6 $2 {[%emt 0:00:30]} (37. h4) 37... Qc2 {[%emt 0:01:15]} 38. Nfd4 {[%emt 0:00:12]} Qc5 {[%emt 0:00:20]} ({Not} 38... Qg6 39. g3 $17) 39. g3 {[%emt 0:00:51]} b5 {[%emt 0:03:19]} 40. Qf6 {[%emt 0:00:19][%cal Od4e6]} Rg6 {[%emt 0:00:17]} 41. Qh4 {[%emt 0:02:59]} h6 {[%emt 0:05:08]} 42. Qe4 {[%emt 0:00:11]} a5 {[%emt 0:01:05][%cal Ba6a5,Ba5a4,Ba4a3,Ba3a2][%mdl 32]} 43. Qe2 {[%emt 0:03:20]} a4 {[%emt 0:02:17]} 44. h4 {[%emt 0:08:36]} a3 {[%emt 0:01:21]} 45. h5 {[%emt 0:02:18]} Rg5 {[%emt 0:01:02][%cal Rc7e5]} 46. f4 {[%emt 0:01:31]} Rg7 {[%emt 0:01:03] And now ...Qc3 would win.} 47. Qd2 {[%emt 0:00:37]} Bb6 {[%emt 0:01:10]} 48. Kh3 {[%emt 0:04:59]} Qc4 {[%emt 0:02:08] ( -> ...a2)} 49. Kh2 {[%emt 0:02:02]} a2 {[%emt 0:00:48] Weighted Error Value: White=0.46/Black=0.16 (very precise)} 0-1